bitfinex-derivatives/quotes_SOLF0:USTF0_20241120
["timestamp","ask_amount","ask_price","bid_price","bid_amount"]
[1732113393982,25.85666492,240.76,240.56,25.85666492]
[1732113394182,1.7305,240.75,240.56,25.85666492]
[1732113394382,1.7305,240.75,240.53,0.4139]
[1732113394580,1.8112,240.74,240.53,0.4139]
[1732113394783,2.0757,240.65,240.58,2.0762]
[1732113395088,1.8112,240.74,240.53,0.4139]
[1732113395284,1.8112,240.74,240.59,0.22388]
[1732113395791,2.0757,240.65,240.59,0.22388]
[1732113396783,2.0757,240.65,240.59,2.30008]
[1732113396992,1.6673,240.71,240.59,0.22388]
[1732113398190,2.0757,240.65,240.59,2.29998]
[1732113399682,3.82,240.68,240.59,0.22388]
[1732113399883,29.67666492,240.68,240.59,0.22388]
[1732113400287,1.6673,240.71,240.59,0.22388]
[1732113400492,3.82,240.7,240.59,0.22388]
[1732113400885,2.0758,240.64,240.59,2.29998]
[1732113401088,3.82,240.7,240.59,0.22388]
[1732113402288,2.0758,240.64,240.59,0.22388]
[1732113402595,3.82,240.7,240.59,0.22388]
[1732113402891,2.0757,240.65,240.6,2.0761]
[1732113403293,2.0757,240.65,240.59,0.22388]
[1732113403882,2.0757,240.65,240.6,2.0761]
[1732113404084,3.82,240.7,240.59,0.22388]
[1732113404293,1.6673,240.71,240.59,0.22388]
[1732113404493,1.6673,240.71,240.6,25.85666492]
[1732113404889,3.82,240.73,240.6,25.85666492]
[1732113405084,2.0751,240.72,240.67,2.0755]
[1732113405289,3.82,240.73,240.6,25.85666492]
[1732113405892,3.82,240.73,240.59,0.22388]
[1732113406088,2.0753,240.7,240.64,2.0757]
[1732113406395,3.82,240.73,240.59,0.22388]
[1732113406590,3.82,240.73,240.62,2.0759]
[1732113406786,25.85666492,240.72,240.59,0.22388]
[1732113407591,25.85666492,240.72,240.6,2.0761]
[1732113407891,3.82,240.73,240.59,0.22388]
[1732113408096,2.0757,240.65,240.59,2.29998]
[1732113408289,25.85666492,240.72,240.52,25.85666492]
[1732113408489,25.85666492,240.72,240.5,3.62]
[1732113408685,3.82,240.73,240.49,0.1804]
[1732113408686,25.85666492,240.68,240.49,0.1804]
[1732113408891,1.8316,240.67,240.48,25.85666492]
[1732113409186,25.85666492,240.64,240.42,0.184]
[1732113409489,5.3111,240.63,240.42,0.184]
[1732113409692,2.0765,240.56,240.5,2.0769]
[1732113409888,1.658,240.62,240.42,0.184]
[1732113410085,1.658,240.62,240.41,25.85666492]
[1732113410286,2.0766,240.55,240.45,2.0774]
[1732113410492,3.62,240.55,240.41,25.85666492]
[1732113411090,3.62,240.55,240.37,26.54806492]
[1732113411698,3.62,240.55,240.45,2.0774]
[1732113411699,2.077,240.5,240.45,2.0774]
[1732113411900,3.62,240.55,240.37,25.85666492]
[1732113412093,1.8099,240.54,240.37,25.85666492]
[1732113412294,2.0774,240.46,240.39,2.0779]
[1732113412594,3.62,240.47,240.33,25.85666492]
[1732113412791,2.0777,240.42,240.31,0.6914]
[1732113412997,3.62,240.44,240.35,2.0783]
[1732113413293,3.62,240.44,240.29,26.26976492]
[1732113413494,2.078,240.39,240.33,2.0784]
[1732113413697,3.62,240.44,240.26,3.62]
[1732113413895,3.62,240.44,240.26,25.85666492]
[1732113414596,2.0781,240.37,240.26,25.85666492]
[1732113414793,29.47666492,240.44,240.26,25.85666492]
[1732113415000,29.47666492,240.44,240.21,25.85666492]
[1732113415199,2.0786,240.32,240.25,2.0791]
[1732113415598,2.0785,240.33,240.25,2.0791]
[1732113416000,2.0785,240.33,240.14,3.62]
[1732113416001,3.62,240.36,240.14,3.62]
[1732113416199,1.8365,240.35,240.14,1.292]
[1732113416400,1.8365,240.35,240.17,2.0797]
[1732113416401,25.85666492,240.32,240.17,2.0797]
[1732113416799,2.0792,240.25,240.12,25.85666492]
[1732113416999,3.62,240.28,240.14,2.08]
[1732113417507,29.47666492,240.28,240.08,25.85666492]
[1732113418200,2.0796,240.2,240.08,25.85666492]
[1732113418403,3.62,240.2,240.08,25.85666492]
[1732113418702,2.08,240.16,240.07,2.0807]
[1732113418906,3.62,240.2,240.07,2.0807]
[1732113418907,1.7348,240.19,240.07,2.0807]
[1732113419204,2.0801,240.14,240.05,2.0808]
[1732113419608,3.62,240.17,240.04,25.85666492]
[1732113419803,3.62,240.17,240.08,2.0806]
[1732113419804,5.6999,240.17,240.08,2.0806]
[1732113419997,3.62,240.17,240.04,25.85666492]
[1732113420507,3.62,240.17,240.07,2.0807]
[1732113420704,1.7348,240.19,240.08,25.85666492]
[1732113420920,1.7348,240.19,240.11,2.0803]
[1732113421209,1.7348,240.19,240.08,25.85666492]
[1732113421408,25.85666492,240.15,239.77,4.1665]
[1732113421611,1.709,240.14,239.98,25.85666492]
[1732113421920,3.5935,240.14,239.98,25.85666492]
[1732113422096,3.62,240.13,240.02,25.85666492]
[1732113422302,3.62,240.13,239.98,25.85666492]
[1732113423007,5.7003,240.12,240.03,2.081]
[1732113423198,3.62,240.12,240.02,25.85666492]
[1732113423398,3.5935,240.14,240.02,25.85666492]
[1732113423598,5.5045,240.14,240.02,25.85666492]
[1732113423797,2.0799,240.16,240.08,2.0806]
[1732113424000,5.3548,240.19,240.02,25.85666492]
[1732113425104,2.08,240.16,240.02,25.85666492]
[1732113425405,5.3548,240.19,240.02,25.85666492]
[1732113425806,5.3548,240.19,240.06,25.85666492]
[1732113426303,5.3548,240.19,239.99,25.85666492]
[1732113426806,5.3548,240.19,240.03,25.85666492]
[1732113427308,2.0803,240.12,240.05,2.0809]
[1732113427605,3.62,240.12,240.05,2.0809]
[1732113427805,2.0804,240.11,240.03,2.081]
[1732113428008,3.62,240.12,239.99,25.85666492]
[1732113428404,25.85666492,240.12,239.78,4.1665]
[1732113428706,3.62,240.11,239.79,4.3848015]
[1732113428909,3.62,240.1,239.98,2.0815]
[1732113429109,5.5509,240.1,239.93,25.85666492]
[1732113429403,1.9309,240.1,240.08,2.0805]
[1732113429604,1.9309,240.1,239.97,25.85666492]
[1732113429915,1.9309,240.1,239.92,3.62]
[1732113429916,1.9309,240.1,239.93,25.85666492]
[1732113430101,2.0806,240.09,239.93,25.85666492]
[1732113430306,1.9309,240.1,239.93,25.85666492]
[1732113430606,2.0806,240.08,239.93,25.85666492]
[1732113430806,1.9548,240.09,239.93,25.85666492]
[1732113431208,2.0807,240.07,239.93,25.85666492]
[1732113431605,1.9402,240.06,239.93,25.85666492]
[1732113432006,5.5509,240.1,239.97,25.85666492]
[1732113432202,5.5509,240.1,239.93,25.85666492]
[1732113432407,2.0807,240.07,239.93,25.85666492]
[1732113432602,5.5509,240.1,239.89,25.85666492]
[1732113432810,1.9574,240.06,240.0,2.0813]
[1732113433306,1.9574,240.06,239.98,2.0814]
[1732113433502,4.0382,240.06,239.89,25.85666492]
[1732113433704,3.62,240.05,239.93,25.85666492]
[1732113433904,3.62,240.05,239.82,4.1657]
[1732113433905,25.85666492,240.2,239.97,25.85666492]
[1732113434105,2.0798,240.18,240.01,25.85666492]
[1732113434304,2.0798,240.18,239.98,1.9323]
[1732113434305,3.62,240.17,239.98,1.9323]
[1732113434510,3.62,240.17,240.07,2.0807]
[1732113434705,2.0801,240.14,239.98,1.9323]
[1732113434908,25.85666492,240.16,239.96,25.85666492]
[1732113435108,1.9574,240.19,240.0,25.85666492]
[1732113435304,3.62,240.18,240.04,25.85666492]
[1732113435512,3.62,240.18,240.0,25.85666492]
[1732113435810,25.85666492,240.15,239.94,25.85666492]
[1732113436209,2.0804,240.11,239.94,25.85666492]
[1732113436512,25.85666492,240.14,240.01,2.0812]
[1732113436910,2.0807,240.08,240.01,2.0812]
[1732113437112,5.5115,240.07,240.01,2.0812]
[1732113437414,3.68,240.06,239.81,4.1658]
[1732113437610,7.3585,240.06,239.82,4.2756]
[1732113437809,3.6785,240.06,240.01,2.0812]
[1732113438011,3.68,240.05,239.83,3.68]
[1732113438211,3.68,240.05,239.94,25.85666492]
[1732113438710,3.68,240.05,240.03,2.081]
[1732113439313,3.68,240.05,240.02,2.0811]
[1732113439510,3.68,240.05,239.94,25.85666492]
[1732113439717,3.68,240.05,239.97,2.0815]
[1732113440009,3.68,240.05,239.82,0.5956]
[1732113440208,3.68,240.04,239.83,0.76494701]
[1732113440420,3.68,240.04,239.91,25.85666492]
[1732113440915,3.68,240.05,239.95,25.85666492]
[1732113441416,3.68,240.05,239.98,2.0815]
[1732113441612,3.68,240.05,239.82,0.5956]
[1732113441613,3.68,240.05,239.9,25.85666492]
[1732113442018,3.68,240.05,239.97,2.0815]
[1732113442215,3.68,240.05,239.9,25.85666492]
[1732113442416,1.8315,240.07,239.9,25.85666492]
[1732113442617,1.8315,240.07,240.01,2.0811]
[1732113442917,1.8315,240.07,239.93,25.85666492]
[1732113443113,1.8315,240.07,239.97,25.85666492]
[1732113443416,3.68,240.08,240.05,2.0808]
[1732113443612,3.68,240.08,239.82,0.5956]
[1732113443812,3.68,240.08,239.93,25.85666492]
[1732113444017,3.68,240.07,239.93,25.85666492]
[1732113444220,1.8021,240.09,239.93,25.85666492]
[1732113444412,3.68,240.08,239.83,1.9229]
[1732113444612,19.66822216,240.08,239.88,15.98822216]
[1732113444818,2.0807,240.07,239.99,2.0814]
[1732113445018,3.68,240.08,239.92,15.98822216]
[1732113445418,1.8021,240.09,239.92,15.98822216]
[1732113445616,1.8021,240.09,239.83,1.9229]
[1732113445813,1.8021,240.09,239.93,15.98822216]
[1732113446316,3.68,240.12,239.97,15.98822216]
[1732113446620,3.68,240.12,239.94,0.5922]
[1732113447020,1.8092,240.13,239.94,0.5922]
[1732113447216,3.68,240.12,239.94,0.5922]
[1732113447417,2.0808,240.06,239.97,2.0815]
[1732113447618,2.0808,240.06,239.87,15.98822216]
[1732113447820,3.68,240.12,239.91,15.98822216]
[1732113448021,3.68,240.11,240.03,2.081]
[1732113448526,15.98822216,240.09,239.88,15.98822216]
[1732113448721,3.68,240.11,239.88,15.98822216]
[1732113448722,1.8037,240.1,239.88,15.98822216]
[1732113448921,1.8037,240.1,239.96,15.98822216]
[1732113449319,1.8037,240.1,240.03,2.081]
[1732113449528,21.81472216,240.17,240.0,15.98822216]
[1732113450125,21.81472216,240.17,239.96,15.98822216]
[1732113450428,3.6114,240.16,239.96,15.98822216]
[1732113451024,2.0802,240.13,240.05,2.0808]
[1732113451324,3.6114,240.16,239.97,1.0996]
[1732113451629,2.0804,240.11,240.02,2.0811]
[1732113451824,15.98822216,240.13,240.02,2.0811]
[1732113452020,15.98822216,240.13,239.92,15.98822216]
[1732113452627,2.0806,240.08,240.0,2.0812]
[1732113452925,3.88,240.07,239.92,15.98822216]
[1732113453427,15.98822216,240.05,239.87,6.76081868]
[1732113453626,15.98822216,240.0,239.87,5.66121868]
[1732113453922,15.98822216,239.88,239.79,16.98365606]
[1732113454122,2.0829,239.82,239.72,5.66121868]
[1732113454328,3.88,239.81,239.72,5.66121868]
[1732113454624,3.88,239.81,239.65,18.49142216]
[1732113454625,2.0831,239.8,239.65,18.49142216]
[1732113455019,3.88,239.81,239.7,2.0839]
[1732113455220,2.0833,239.78,239.65,2.5032]
[1732113455524,2.0833,239.78,239.57,16.98365606]
[1732113455734,3.88,239.81,239.58,0.76577716]
[1732113455735,15.98822216,239.75,239.58,0.76577716]
[1732113456032,15.98822216,239.79,239.6,15.98822216]
[1732113456237,2.083,239.81,239.6,15.98822216]
[1732113456434,15.98822216,239.83,239.64,15.98822216]
[1732113456932,3.88,239.84,239.62,2.12591768]
[1732113457135,3.88,239.84,239.64,15.98822216]
[1732113457338,15.98822216,239.83,239.64,15.98822216]
[1732113457537,26.03169849,239.83,239.63,26.03169849]
[1732113458335,26.03169849,239.79,239.59,26.03169849]
[1732113458532,26.03169849,239.75,239.57,1.0966]
[1732113458737,3.88,239.74,239.57,1.0966]
[1732113459035,3.88,239.74,239.59,26.03169849]
[1732113459235,3.88,239.74,239.57,1.0966]
[1732113459435,3.88,239.74,239.62,2.0845]
[1732113459737,3.88,239.74,239.57,1.0966]
[1732113459738,2.084,239.69,239.57,1.0966]
[1732113460134,26.03169849,239.75,239.57,1.0966]
[1732113460335,3.88,239.74,239.57,1.0966]
[1732113460530,3.88,239.74,239.62,2.0845]
[1732113460731,26.03169849,239.79,239.58,26.03169849]
[1732113461535,26.03169849,239.71,239.56,1.4066]
[1732113461732,2.0841,239.68,239.58,2.0849]
[1732113461930,3.88,239.7,239.56,1.4066]
[1732113462131,3.88,239.7,239.51,1.1024]
[1732113462132,26.03169849,239.68,239.51,1.1024]
[1732113462332,2.0844,239.65,239.55,2.0852]
[1732113462534,26.03169849,239.68,239.51,1.1024]
[1732113462739,26.03169849,239.68,239.52,0.76595486]
[1732113463038,3.88,239.67,239.55,2.0852]
[1732113463240,3.88,239.67,239.51,1.1024]
[1732113463443,2.0843,239.66,239.55,2.0851]
[1732113463640,2.0843,239.66,239.51,1.1024]
[1732113463843,3.88,239.67,239.52,0.76596186]
[1732113464044,2.0845,239.64,239.54,2.0853]
[1732113464238,3.88,239.67,239.51,1.1024]
[1732113464433,26.03169849,239.6,239.52,0.76596988]
[1732113464735,2.0853,239.54,239.42,0.8267]
[1732113464940,26.03169849,239.51,239.37,0.5952]
[1732113465133,26.03169849,239.51,239.38,0.76648609]
[1732113465337,26.03169849,239.51,239.37,0.5952]
[1732113465640,26.03169849,239.51,239.38,0.76653221]
[1732113465839,1.8938,239.66,239.41,26.03169849]
[1732113465840,3.9,239.59,239.41,26.03169849]
[1732113466239,2.0854,239.53,239.44,2.0861]
[1732113466443,26.03169849,239.56,239.37,26.03169849]
[1732113466637,3.9,239.59,239.41,26.03169849]
[1732113466841,3.9,239.59,239.48,2.0858]
[1732113467142,3.9,239.59,239.41,26.03169849]
[1732113467338,5.9849,239.59,239.49,2.0857]
[1732113467540,3.9,239.63,239.45,26.03169849]
[1732113467742,3.9,239.63,239.46,1.87008264]
[1732113467938,3.9,239.63,239.46,1.1038]
[1732113468143,2.0846,239.62,239.52,2.0854]
[1732113468345,3.9,239.63,239.46,1.1038]
[1732113468641,3.9,239.63,239.52,2.0854]
[1732113468839,3.9,239.63,239.46,1.1038]
[1732113469143,26.03169849,239.64,239.51,2.0855]
[1732113469345,2.0842,239.67,239.49,26.03169849]
[1732113469346,3.9,239.67,239.49,26.03169849]
[1732113469540,3.9,239.67,239.5,1.817]
[1732113470240,1.84,239.74,239.57,26.03169849]
[1732113470740,2.0837,239.73,239.63,2.0845]
[1732113470939,1.84,239.74,239.63,2.0845]
[1732113471143,26.03169849,239.8,239.61,26.03169849]
[1732113471340,3.9,239.81,239.65,26.03169849]
[1732113471640,3.9,239.81,239.59,1.9053]
[1732113471841,5.983,239.81,239.71,2.0838]
[1732113472340,26.03169849,239.88,239.68,26.03169849]
[1732113472541,3.6132,239.91,239.72,26.03169849]
[1732113472746,29.93169849,239.96,239.76,26.03169849]
[1732113472941,29.93169849,239.96,239.86,2.0825]
[1732113473138,3.9,239.96,239.76,26.03169849]
[1732113473340,3.9,239.96,239.8,26.03169849]
[1732113473539,28.11269849,240.04,239.92,2.082]
[1732113473744,26.03169849,240.0,239.84,3.9]
[1732113473948,26.03169849,240.0,239.8,29.93169849]
[1732113474252,28.11299849,240.0,239.87,2.0824]
[1732113474546,26.03169849,240.04,239.84,26.03169849]
[1732113474742,3.9,240.06,239.88,26.03169849]
[1732113475143,3.9,240.05,239.88,26.03169849]
[1732113476039,3.9,240.05,239.92,26.03169849]
[1732113476349,29.93169849,240.16,239.96,26.03169849]
[1732113476550,5.98,240.15,239.96,26.03169849]
[1732113476743,3.9,240.15,239.96,26.03169849]
[1732113476941,3.9,240.15,239.97,2.0815]
[1732113476942,2.0805,240.1,239.97,2.0815]
[1732113477141,3.9,240.15,239.96,26.03169849]
[1732113477447,2.0802,240.13,240.0,2.0813]
[1732113477645,3.9,240.15,239.96,26.03169849]
[1732113478140,26.03169849,240.08,239.91,2.9198]
[1732113478447,26.03169849,240.12,239.92,26.03169849]
[1732113478646,26.03169849,240.08,239.88,26.03169849]
[1732113478948,3.8515,240.07,239.88,26.03169849]
[1732113479150,3.8515,240.07,239.92,26.03169849]
[1732113479851,3.8515,240.07,239.95,2.0817]
[1732113480349,3.8515,240.07,239.96,2.0816]
[1732113480556,3.8515,240.07,239.92,26.03169849]
[1732113480752,3.8515,240.07,239.88,26.03169849]
[1732113480953,3.8515,240.07,239.92,26.03169849]
[1732113481152,4.2,240.11,239.96,26.03169849]
[1732113481348,4.2,240.11,240.04,2.0809]
[1732113481649,29.88459849,240.2,240.0,26.03169849]
[1732113481849,3.8529,240.2,240.08,26.03169849]
[1732113482050,26.03169849,240.28,240.08,26.03169849]
[1732113482249,4.2,240.29,240.12,26.03169849]
[1732113482455,2.0789,240.28,240.16,2.0799]
[1732113482752,4.2,240.29,240.16,2.0799]
[1732113482951,4.2,240.29,240.12,26.03169849]
[1732113483151,4.2,240.29,240.17,2.0798]
[1732113483458,4.2,240.29,240.04,4.2]
[1732113483459,26.03169849,240.28,240.07,26.03169849]
[1732113483951,26.03169849,240.2,239.81,22.7164471]
[1732113484155,9.7641,240.19,240.01,26.03169849]
[1732113484355,9.7641,240.19,240.05,26.03169849]
[1732113484556,5.5641,240.19,240.05,26.03169849]
[1732113484749,3.7054,240.19,240.05,26.03169849]
[1732113485051,82.55658,240.21,240.09,26.03169849]
[1732113485352,82.55658,240.21,240.13,26.03169849]
[1732113485550,82.55658,240.21,240.17,26.03169849]
[1732113486678,82.55658,240.21,240.19,2.0796]
[1732113487772,82.55658,240.21,240.13,26.03169849]
[1732113488174,82.55658,240.21,240.19,2.0796]
[1732113488571,81.46558,240.21,240.19,2.0796]
[1732113488878,8.61856576,240.21,240.2,15.94864675]
[1732113489073,6.22326576,240.21,240.2,15.94864675]
[1732113489385,6.22326576,240.21,240.19,2.0796]
[1732113490781,6.22326576,240.21,240.1,15.94864675]
[1732113491180,6.22326576,240.21,240.14,15.94864675]
[1732113491381,6.22326576,240.21,240.1,20.58864675]
[1732113491576,6.22326576,240.21,240.1,4.64]
[1732113491886,6.22326576,240.21,240.1,2.0804]
[1732113492083,6.22326576,240.21,240.06,15.94864675]
[1732113492282,6.22326576,240.21,240.03,4.64]
[1732113492478,6.22326576,240.21,239.98,15.94864675]
[1732113492479,15.94864675,240.18,239.98,15.94864675]
[1732113492781,15.94864675,240.14,239.94,15.94864675]
[1732113492966,2.0806,240.09,240.0,2.0813]
[1732113493468,2.0806,240.09,239.99,2.0813]
[1732113493773,4.64,240.09,239.88,15.94864675]
[1732113493976,2.0809,240.05,239.96,2.0816]
[1732113494172,6.4252,240.09,239.88,15.94864675]
[1732113494363,6.4252,240.09,239.92,15.94864675]
[1732113494657,6.4252,240.09,239.9,25.9828999]
[1732113494861,25.9828999,240.06,239.86,25.9828999]
[1732113495060,3.9114,240.05,239.86,25.9828999]
[1732113495755,2.0813,240.0,239.89,2.0822]
[1732113495956,3.9114,240.05,239.86,25.9828999]
[1732113496355,2.0811,240.03,239.93,2.0819]
[1732113496560,3.9114,240.05,239.86,25.9828999]
[1732113496753,3.9114,240.05,239.9,25.9828999]
[1732113496952,3.9114,240.05,239.98,2.0814]
[1732113497156,3.9114,240.05,239.8,4.64]
[1732113497464,3.9114,240.05,239.89,25.9828999]
[1732113498253,2.0811,240.03,239.93,2.0818]
[1732113498759,3.9114,240.05,239.85,25.9828999]
[1732113498953,3.9114,240.05,239.89,25.9828999]
[1732113499259,3.9114,240.05,239.93,25.9828999]
[1732113499859,3.9114,240.05,239.89,25.9828999]
[1732113500459,2.081,240.04,239.95,2.0817]
[1732113500660,3.9114,240.05,239.85,25.9828999]
[1732113500863,25.9828999,240.02,239.81,25.9828999]
[1732113501062,2.0815,239.98,239.88,2.0823]
[1732113501361,2.0815,239.98,239.8,4.64]
[1732113501362,4.64,240.01,239.89,25.9828999]
[1732113501563,4.64,240.01,239.83,25.9828999]
[1732113501759,25.9828999,239.99,239.76,25.9828999]
[1732113501961,25.9828999,239.99,239.6,5.67911177]
[1732113501962,25.9828999,239.95,239.72,25.9828999]
[1732113502161,2.0829,239.82,239.73,2.0836]
[1732113502562,8.3505,239.86,239.64,25.9828999]
[1732113502959,2.0831,239.8,239.71,2.0838]
[1732113503263,8.3505,239.86,239.73,25.9828999]
[1732113503461,8.3505,239.86,239.79,2.0831]
[1732113503664,8.3505,239.86,239.73,25.9828999]
[1732113503860,3.7105,239.86,239.73,25.9828999]
[1732113504063,3.7105,239.86,239.83,2.0828]
[1732113504261,6.4337,239.94,239.77,25.9828999]
[1732113504662,8.5156,239.94,239.81,25.9828999]
[1732113504959,8.5156,239.94,239.77,25.9828999]
[1732113504960,6.4337,239.94,239.77,25.9828999]
[1732113505461,6.4337,239.94,239.81,25.9828999]
[1732113505663,6.4337,239.94,239.71,4.64]
[1732113505664,8.5156,239.94,239.85,2.0826]
[1732113506463,6.4337,239.94,239.72,25.9828999]
[1732113506960,2.082,239.92,239.81,2.0829]
[1732113507163,6.4337,239.94,239.8,25.9828999]
[1732113507565,3.7105,239.98,239.84,25.9828999]
[1732113507965,3.7105,239.98,239.9,2.0821]
[1732113508165,3.7105,239.98,239.79,4.64]
[1732113508166,3.7105,239.98,239.88,25.9828999]
[1732113508566,1.8308,239.98,239.88,25.9828999]
[1732113508762,2.081,240.04,239.88,25.9828999]
[1732113508962,1.821,240.05,239.88,25.9828999]
[1732113509160,1.821,240.05,239.98,2.0815]
[1732113509361,1.821,240.05,239.92,25.9828999]
[1732113509768,25.9828999,240.18,240.0,25.9828999]
[1732113509972,1.8073,240.17,240.0,25.9828999]
[1732113510275,1.8073,240.17,240.04,25.9828999]
[1732113510863,1.8073,240.17,240.11,2.0803]
[1732113511266,1.821,240.2,240.08,25.9828999]
[1732113511668,1.821,240.2,240.04,25.9828999]
[1732113512068,27.8771999,240.26,240.08,25.9828999]
[1732113512573,25.9828999,240.3,240.08,25.9828999]
[1732113512765,1.8943,240.33,240.16,25.9828999]
[1732113512970,1.8248,240.34,240.2,25.9828999]
[1732113513165,25.9828999,240.44,240.24,25.9828999]
[1732113513567,1.8248,240.47,240.2,25.9828999]
[1732113513568,25.9828999,240.4,240.2,25.9828999]
[1732113513768,25.9828999,240.36,240.19,4.64]
[1732113514075,25.9828999,240.32,240.13,4.64]
[1732113514372,25.9828999,240.32,240.19,2.0796]
[1732113514766,25.9828999,240.32,240.13,4.64]
[1732113514969,25.9828999,240.36,240.16,25.9828999]
[1732113515373,2.0787,240.3,240.19,2.0797]
[1732113515574,25.9828999,240.28,240.08,30.6228999]
[1732113515777,1.8332,240.29,240.12,25.9828999]
[1732113516374,25.9828999,240.32,240.23,2.0793]
[1732113516673,2.0783,240.35,240.15,15.9548988]
[1732113516674,15.9548988,240.35,240.15,15.9548988]
[1732113516975,2.0784,240.34,240.15,15.9548988]
[1732113517477,15.9548988,240.35,240.15,15.9548988]
[1732113517778,15.9548988,240.35,240.22,2.0794]
[1732113518381,18.0331988,240.35,240.21,2.0795]
[1732113518677,15.9548988,240.35,240.15,15.9548988]
[1732113519279,15.9548988,240.31,240.12,4.64]
[1732113519675,15.9548988,240.31,239.92,19.19566886]
[1732113519676,15.9548988,240.27,240.07,15.9548988]
[1732113519876,15.9548988,240.23,240.03,20.5948988]
[1732113520074,15.9548988,240.23,240.03,4.64]
[1732113520477,15.9548988,240.19,240.03,4.64]
[1732113520775,15.9548988,240.19,239.99,15.9548988]
[1732113521176,15.9548988,240.19,239.97,4.56]
[1732113521177,25.96050707,240.2,240.0,25.96050707]
[1732113521378,25.96050707,240.24,240.04,25.96050707]
[1732113521583,25.96050707,240.24,240.0,25.96050707]
[1732113521879,25.96050707,240.24,240.04,25.96050707]
[1732113522379,2.0797,240.19,240.07,2.0806]
[1732113522877,25.96050707,240.24,240.04,25.96050707]
[1732113523081,1.861,240.25,240.08,25.96050707]
[1732113523381,8.2309,240.26,240.12,25.96050707]
[1732113523679,3.6709,240.26,240.12,25.96050707]
[1732113524784,3.6709,240.26,240.08,25.96050707]
[1732113524982,25.96050707,240.24,240.09,2.0805]
[1732113525181,25.96050707,240.24,240.07,4.56]
[1732113525377,2.0795,240.21,240.1,2.0804]
[1732113525683,3.6709,240.26,240.09,25.96050707]
[1732113526178,2.0793,240.23,240.14,2.0801]
[1732113526886,2.0795,240.21,240.09,25.96050707]
[1732113527086,3.6709,240.26,240.09,25.96050707]
[1732113528291,25.96050707,240.32,240.13,25.96050707]
[1732113528488,29.67650707,240.36,240.13,25.96050707]
[1732113528889,2.0786,240.32,240.19,2.0796]
[1732113529087,2.0786,240.32,240.17,25.96050707]
[1732113529393,2.0786,240.32,240.08,4.56]
[1732113529394,3.716,240.36,240.21,25.96050707]
[1732113529597,5.7942,240.36,240.26,2.079]
[1732113529793,3.716,240.36,240.26,2.079]
[1732113530289,3.716,240.36,240.21,25.96050707]
[1732113530290,2.0784,240.34,240.21,25.96050707]
[1732113530491,3.716,240.36,240.21,25.96050707]
[1732113530891,5.7942,240.36,240.21,25.96050707]
[1732113531194,25.96050707,240.44,240.25,25.96050707]
[1732113531497,29.96,240.46,240.21,25.96050707]
[1732113531498,25.96050707,240.4,240.21,25.96050707]
[1732113531988,25.96050707,240.36,240.19,4.56]
[1732113532195,30.30050707,240.36,240.19,4.56]
[1732113532397,2.0789,240.28,240.19,2.0796]
[1732113532690,30.30050707,240.36,240.13,25.96050707]
[1732113533194,2.0788,240.29,240.2,2.0795]
[1732113533391,2.0788,240.29,240.13,25.96050707]
[1732113533997,2.0787,240.3,240.13,25.96050707]
[1732113534199,30.30050707,240.36,240.17,25.96050707]
[1732113534391,4.34,240.36,240.17,25.96050707]
[1732113534690,30.30050707,240.36,240.12,25.96050707]
[1732113534897,30.30050707,240.36,240.23,2.0793]
[1732113535197,2.0786,240.31,240.16,25.96050707]
[1732113535392,30.30050707,240.36,240.16,25.96050707]
[1732113535694,2.0788,240.29,240.12,25.96050707]
[1732113535896,25.96050707,240.32,240.12,25.96050707]
[1732113536090,3.8111,240.28,240.12,25.96050707]
[1732113536994,2.079,240.27,240.12,25.96050707]
[1732113537190,3.8111,240.28,240.12,25.96050707]
[1732113537699,29.77160707,240.28,240.1,4.34]
[1732113538897,2.0793,240.23,240.14,2.08]
[1732113539093,29.77160707,240.28,240.08,25.96050707]
[1732113539599,29.77160707,240.28,240.12,2.0802]